[Event "Smuk Skak GM Tournament 2021"]
[Site "Skanderborg, Denmark"]
[Date "????.??.??"]
[Round "6.3"]
[White "Ochsner, Bjørn Møller"]
[Black "Janik, Igor"]
[Result "1/2-1/2"]
[TimeControl "90 minutes + 30 minutes at move 40, 30 secs pr move from move 1"]
[WhiteTitle "IM"]
[BlackTitle "IM"]
[WhiteFideId "1416928"]
[BlackFideId "1159259"]
[WhiteElo "2506"]
[BlackElo "2500"]

1. e4 {[%clk 01:30:57]} {[%emt 00:00:02]} e5 {[%clk 01:30:56]} {[%emt
00:00:05]} 2. Nf3 {[%clk 01:31:07]} {[%emt 00:00:19]} Nc6 {[%clk 01:31:19]}
{[%emt 00:00:07]} 3. Bb5 {[%clk 01:31:16]} {[%emt 00:00:28]} a6 {[%clk
01:31:43]} 4. Ba4 {[%clk 01:31:42]} {[%emt 00:00:10]} Nf6 {[%clk 01:32:06]}
{[%emt 00:00:04]} 5. O-O {[%clk 01:32:04]} {[%emt 00:00:04]} b5 {[%clk
01:32:30]} {[%emt 00:00:06]} 6. Bb3 {[%clk 01:32:27]} {[%emt 00:00:07]} Bc5
{[%clk 01:32:56]} {[%emt 00:00:04]} 7. a4 {[%clk 01:31:19]} {[%emt 00:01:48]}
Rb8 {[%clk 01:33:20]} 8. c3 {[%clk 01:31:24]} {[%emt 00:00:31]} d6 {[%clk
01:33:41]} 9. d4 {[%clk 01:31:22]} {[%emt 00:00:41]} Bb6 {[%clk 01:34:04]} 10.
axb5 {[%clk 01:25:12]} {[%emt 00:06:42]} axb5 {[%clk 01:34:28]} {[%emt
00:00:10]} 11. Na3 {[%clk 01:24:52]} {[%emt 00:00:41]} O-O {[%clk 01:34:45]}
{[%emt 00:00:21]} 12. Nxb5 {[%clk 01:25:04]} {[%emt 00:00:21]} Bg4 {[%clk
01:35:06]} 13. Bc2 {[%clk 01:25:04]} {[%emt 00:00:31]} Bxf3 {[%clk 01:35:25]}
{[%emt 00:00:10]} 14. gxf3 {[%clk 01:25:18]} {[%emt 00:00:21]} Nh5 {[%clk
01:35:45]} {[%emt 00:00:10]} 15. f4 {[%clk 01:24:26]} {[%emt 00:01:25]} Qh4
{[%clk 01:36:07]} 16. fxe5 {[%clk 01:23:42]} {[%emt 00:01:11]} dxe5 {[%clk
01:36:24]} {[%emt 00:00:13]} 17. d5 {[%clk 01:24:03]} {[%emt 00:00:16]} Kh8
{[%clk 01:36:47]} {[%emt 00:00:10]} 18. dxc6 {[%clk 01:05:23]} {[%emt
00:19:05]} g5 {[%clk 01:37:06]} {[%emt 00:00:20]} 19. Ra6 {[%clk 00:18:46]}
{[%emt 00:47:05]} Rg8 {[%clk 01:35:41]} {[%emt 00:02:02]} 20. Rxb6 Rxb6 {[%clk
01:36:03]} 21. Qd5 {[%clk 00:02:04]} {[%emt 00:00:41]} Qg4+ {[%clk 01:35:56]}
{[%emt 00:00:41]} 22. Kh1 {[%clk 00:02:33]} Qf3+ {[%clk 01:36:19]} 23. Kg1
{[%clk 00:03:01]} Nf4 {[%clk 01:36:12]} {[%emt 00:00:41]} 24. Qxe5+ {[%clk
00:03:04]} {[%emt 00:00:41]} Rg7 {[%clk 01:36:38]} 25. Qe8+ {[%clk 00:03:14]}
{[%emt 00:00:20]} Rg8 {[%clk 01:37:02]} 26. Qe5+ {[%clk 00:03:41]} Rg7 {[%clk
01:37:27]} {[%emt 00:00:20]} 27. Qe8+ {[%clk 00:04:08]} Rg8 {[%clk 01:37:50]}
28. Qe5+ 1/2-1/2

[Event "Smuk Skak GM Tournament 2021"]
[Site "Skanderborg, Denmark"]
[Date "????.??.??"]
[Round "6.4"]
[White "Brunello, Sabino"]
[Black "Svane, Frederik"]
[Result "0-1"]
[TimeControl "90 minutes + 30 minutes at move 40, 30 secs pr move from move 1"]
[WhiteTitle "GM"]
[BlackTitle "IM"]
[WhiteFideId "813613"]
[BlackFideId "12923044"]
[WhiteElo "2517"]
[BlackElo "2438"]

1. d4 {[%clk 01:30:53]} {[%emt 00:00:05]} Nf6 {[%clk 01:30:55]} {[%emt
00:00:06]} 2. Bg5 {[%clk 01:31:19]} {[%emt 00:00:04]} e6 {[%clk 01:23:56]}
{[%emt 00:07:29]} 3. Nd2 {[%clk 01:31:27]} {[%emt 00:00:22]} c5 {[%clk
01:24:13]} {[%emt 00:00:22]} 4. e3 {[%clk 01:30:30]} {[%emt 00:01:28]} cxd4 5.
exd4 {[%clk 01:30:57]} Be7 {[%clk 01:22:50]} {[%emt 00:00:41]} 6. Bd3 {[%clk
01:30:18]} {[%emt 00:01:02]} b6 {[%clk 01:21:34]} {[%emt 00:01:56]} 7. Ngf3
{[%clk 01:19:22]} {[%emt 00:11:18]} Bb7 {[%clk 01:21:54]} {[%emt 00:00:20]} 8.
c3 {[%clk 01:19:15]} {[%emt 00:00:41]} d6 {[%clk 01:19:46]} {[%emt 00:02:22]} 9.
Qe2 {[%clk 01:17:42]} {[%emt 00:02:22]} Nbd7 {[%clk 01:19:16]} {[%emt
00:00:41]} 10. a4 {[%clk 01:17:10]} {[%emt 00:01:21]} O-O {[%clk 01:12:32]}
{[%emt 00:07:07]} 11. O-O {[%clk 01:15:19]} {[%emt 00:02:22]} Qc7 {[%clk
01:06:21]} {[%emt 00:06:46]} 12. Bh4 {[%clk 01:01:06]} {[%emt 00:14:34]} Rfe8
{[%clk 01:04:29]} {[%emt 00:02:22]} 13. Ng5 {[%clk 00:57:11]} {[%emt 00:04:24]}
h6 {[%clk 00:53:46]} {[%emt 00:11:11]} 14. f4 {[%clk 00:56:10]} {[%emt
00:01:42]} Nf8 {[%clk 00:50:25]} {[%emt 00:03:44]} 15. Rae1 {[%clk 00:51:51]}
{[%emt 00:04:44]} hxg5 {[%clk 00:39:49]} {[%emt 00:11:11]} 16. fxg5 {[%clk
00:51:24]} {[%emt 00:01:01]} N6h7 {[%clk 00:32:23]} {[%emt 00:07:47]} 17. Qh5
{[%clk 00:21:59]} {[%emt 00:29:59]} g6 {[%clk 00:23:56]} {[%emt 00:08:48]} 18.
Qh6 {[%clk 00:22:21]} {[%emt 00:00:20]} Bd8 {[%clk 00:23:56]} {[%emt 00:00:20]}
19. Rf6 {[%clk 00:11:29]} {[%emt 00:11:31]} Re7 {[%clk 00:22:17]} {[%emt
00:02:02]} 20. Ref1 {[%clk 00:06:22]} {[%emt 00:05:33]} Qc6 {[%clk 00:22:15]}
{[%emt 00:00:31]} 21. Ne4 {[%clk 00:06:08]} {[%emt 00:00:52]} Qxe4 {[%clk
00:20:01]} {[%emt 00:02:43]} 22. Bxe4 Bxe4 {[%clk 00:20:26]} 23. Bg3 {[%clk
00:05:33]} {[%emt 00:01:01]} Bc7 {[%clk 00:19:29]} {[%emt 00:01:21]} 24. R6f2
{[%clk 00:05:27]} {[%emt 00:00:41]} e5 {[%clk 00:13:36]} {[%emt 00:06:26]} 25.
dxe5 dxe5 {[%clk 00:14:00]} 26. Rd2 {[%clk 00:04:14]} {[%emt 00:01:42]} Rae8
{[%clk 00:11:55]} {[%emt 00:02:22]} 27. Re1 {[%clk 00:01:57]} {[%emt 00:03:03]}
Bf5 {[%clk 00:10:25]} {[%emt 00:02:02]} 28. Rde2 {[%clk 00:00:50]} {[%emt
00:01:21]} e4 {[%clk 00:07:42]} {[%emt 00:03:23]} 29. Qh4 {[%clk 00:00:39]}
{[%emt 00:00:41]} Ne6 {[%clk 00:06:39]} {[%emt 00:01:21]} 30. Bxc7 Nxc7 {[%clk
00:07:03]} 31. Qg3 {[%clk 00:00:41]} {[%emt 00:00:41]} Ne6 {[%clk 00:06:46]}
{[%emt 00:00:41]} 32. h4 {[%clk 00:00:54]} {[%emt 00:00:20]} Nc5 {[%clk
00:07:13]} 33. Rf1 {[%clk 00:00:35]} {[%emt 00:00:41]} Re5 {[%clk 00:06:59]}
{[%emt 00:00:41]} 34. c4 {[%emt 00:00:41]} Nd3 {[%clk 00:06:53]} {[%emt
00:00:41]} 35. b3 {[%clk 00:00:36]} {[%emt 00:00:20]} Nf8 {[%clk 00:06:35]}
{[%emt 00:00:41]} 36. Qe3 {[%clk 00:00:32]} {[%emt 00:00:41]} Ne6 {[%clk
00:06:33]} {[%emt 00:00:41]} 37. h5 {[%clk 00:00:33]} {[%emt 00:00:20]} gxh5
{[%clk 00:04:07]} {[%emt 00:03:03]} 38. Rxf5 Rxf5 {[%clk 00:04:33]} 39. Qxe4
{[%clk 00:00:59]} {[%emt 00:00:20]} Ndf4 {[%clk 00:04:16]} {[%emt 00:00:41]} 40.
Rd2 {[%clk 00:00:32]} {[%emt 00:01:01]} Rxg5 {[%clk 00:03:13]} {[%emt
00:01:22]} 41. Qb7 {[%clk 00:00:31]} {[%emt 00:00:28]} Nc5 {[%clk 00:27:50]}
{[%emt 00:05:53]} 42. Qxa7 {[%clk 00:30:39]} {[%emt 00:00:23]} Ne2+ {[%clk
00:24:29]} {[%emt 00:03:50]} 43. Kh2 {[%clk 00:28:06]} {[%emt 00:03:03]} Re4
{[%clk 00:24:48]} {[%emt 00:00:11]} 44. g3 {[%clk 00:28:29]} {[%emt 00:00:08]}
Nxg3 {[%clk 00:24:45]} {[%emt 00:00:33]} 45. Rg2 {[%clk 00:28:30]} {[%emt
00:00:29]} Rh4+ {[%clk 00:24:46]} {[%emt 00:00:29]} 46. Kg1 {[%clk 00:28:59]}
{[%emt 00:00:01]} Rh1+ {[%clk 00:25:07]} {[%emt 00:00:17]} 47. Kf2 {[%clk
00:29:26]} Nge4+ {[%clk 00:25:00]} {[%emt 00:00:32]} 0-1

[Event "Smuk Skak GM Tournament 2021"]
[Site "Skanderborg, Denmark"]
[Date "????.??.??"]
[Round "6.5"]
[White "Nagy, Gabor"]
[Black "Pedersen, Nicolai Vesterbæk"]
[Result "1-0"]
[TimeControl "90 minutes + 30 minutes at move 40, 30 secs pr move from move 1"]
[WhiteTitle "GM"]
[BlackTitle "IM"]
[WhiteFideId "737119"]
[BlackFideId "1402340"]
[WhiteElo "2518"]
[BlackElo "2369"]

1. d4 {[%clk 01:30:21]} {[%emt 00:00:37]} Nf6 {[%clk 01:30:50]} {[%emt
00:00:11]} 2. Nf3 {[%clk 01:30:39]} {[%emt 00:00:12]} e6 {[%clk 01:30:50]}
{[%emt 00:00:31]} 3. c4 {[%clk 01:31:00]} {[%emt 00:00:08]} d5 {[%clk
01:30:51]} {[%emt 00:00:32]} 4. e3 {[%clk 01:30:40]} {[%emt 00:00:51]} a6
{[%clk 01:29:05]} {[%emt 00:02:14]} 5. b3 {[%clk 01:27:24]} {[%emt 00:03:51]}
c5 {[%clk 01:27:48]} {[%emt 00:01:49]} 6. Bb2 {[%clk 01:26:57]} {[%emt
00:00:52]} Nc6 {[%clk 01:26:19]} {[%emt 00:02:04]} 7. Nbd2 {[%clk 01:26:13]}
{[%emt 00:01:15]} dxc4 {[%clk 01:06:01]} {[%emt 00:20:57]} 8. bxc4 {[%clk
01:20:08]} {[%emt 00:06:26]} cxd4 {[%clk 01:02:43]} {[%emt 00:03:44]} 9. exd4
{[%clk 01:20:19]} {[%emt 00:00:20]} Be7 {[%clk 01:02:19]} {[%emt 00:01:01]} 10.
Bd3 {[%clk 01:20:16]} {[%emt 00:00:20]} Nxd4 {[%clk 00:56:52]} {[%emt
00:06:06]} 11. Nxd4 {[%clk 01:12:39]} {[%emt 00:08:08]} e5 {[%clk 00:57:10]}
{[%emt 00:00:20]} 12. O-O {[%clk 01:06:20]} {[%emt 00:06:47]} exd4 {[%clk
00:57:05]} {[%emt 00:00:20]} 13. Nb3 {[%clk 01:06:18]} {[%emt 00:00:41]} O-O
{[%clk 00:26:37]} {[%emt 00:30:50]} 14. Nxd4 {[%clk 01:06:21]} {[%emt
00:00:41]} Ng4 {[%clk 00:20:01]} {[%emt 00:06:49]} 15. Be2 {[%clk 01:04:14]}
{[%emt 00:02:38]} Ne5 {[%clk 00:18:57]} {[%emt 00:01:43]} 16. Qb3 {[%clk
01:03:32]} {[%emt 00:01:12]} Bf6 {[%clk 00:18:38]} {[%emt 00:00:41]} 17. Rad1
{[%clk 01:01:51]} {[%emt 00:02:22]} Qc7 {[%clk 00:16:40]} {[%emt 00:02:22]} 18.
Qg3 {[%clk 00:56:05]} {[%emt 00:06:26]} Re8 {[%clk 00:15:16]} {[%emt 00:01:42]}
19. Nc2 {[%clk 00:50:40]} {[%emt 00:06:06]} Nf3+ {[%clk 00:11:42]} {[%emt
00:04:04]} 20. Bxf3 {[%clk 00:50:41]} {[%emt 00:00:20]} Qxg3 21. hxg3 {[%clk
00:50:57]} Bxb2 {[%clk 00:12:09]} {[%emt 00:00:20]} 22. Rb1 {[%clk 00:50:14]}
{[%emt 00:01:21]} Bf6 {[%clk 00:06:13]} {[%emt 00:06:26]} 23. Ne3 {[%clk
00:49:47]} {[%emt 00:01:01]} Rb8 {[%clk 00:03:08]} {[%emt 00:03:23]} 24. Rfd1
{[%clk 00:50:08]} {[%emt 00:00:20]} Bg5 {[%clk 00:01:37]} {[%emt 00:02:02]} 25.
c5 {[%clk 00:49:07]} {[%emt 00:01:21]} Bxe3 {[%clk 00:00:42]} {[%emt 00:01:42]}
26. fxe3 {[%clk 00:49:35]} Kf8 {[%clk 00:00:37]} {[%emt 00:00:20]} 27. c6
{[%clk 00:49:25]} {[%emt 00:00:41]} b5 {[%clk 00:00:32]} {[%emt 00:00:41]} 28.
Rbc1 {[%clk 00:48:02]} {[%emt 00:02:02]} Ke7 {[%clk 00:00:33]} {[%emt
00:00:20]} 29. Bd5 {[%clk 00:45:33]} {[%emt 00:03:03]} Rb6 {[%clk 00:00:40]}
{[%emt 00:00:20]} 30. Kf2 {[%clk 00:45:48]} {[%emt 00:00:20]} Be6 {[%clk
00:00:33]} {[%emt 00:00:41]} 31. Bxe6 Kxe6 {[%clk 00:01:01]} 32. c7 {[%clk
00:45:56]} {[%emt 00:00:20]} 1-0

[Event "Smuk Skak GM Tournament 2021"]
[Site "Skanderborg, Denmark"]
[Date "2021.08.20"]
[Round "7.1"]
[White "Svane, Frederik"]
[Black "Nagy, Gabor"]
[Result "1/2-1/2"]
[TimeControl "90 minutes + 30 minutes at move 40, 30 secs pr move from move 1"]
[WhiteTitle "IM"]
[BlackTitle "GM"]
[WhiteFideId "12923044"]
[BlackFideId "737119"]
[WhiteElo "2438"]
[BlackElo "2518"]

1. e4 {[%clk 01:30:56]} {[%emt 01:54:33]} e5 {[%clk 01:30:41]} {[%emt
00:00:17]} 2. Nf3 {[%clk 01:31:17]} {[%emt 00:00:09]} Nc6 {[%clk 01:30:59]}
{[%emt 00:00:13]} 3. Bb5 {[%clk 01:31:41]} {[%emt 00:00:06]} a6 {[%clk
01:31:11]} {[%emt 00:00:18]} 4. Ba4 {[%clk 01:32:05]} {[%emt 00:00:06]} Nf6
{[%clk 01:31:24]} {[%emt 00:00:17]} 5. O-O {[%clk 01:32:25]} {[%emt 00:00:10]}
Be7 {[%clk 01:31:41]} {[%emt 00:00:13]} 6. d3 {[%clk 01:32:46]} {[%emt
00:00:09]} b5 {[%clk 01:31:52]} {[%emt 00:00:19]} 7. Bb3 {[%clk 01:33:09]}
{[%emt 00:00:08]} d6 {[%clk 01:32:06]} {[%emt 00:00:15]} 8. a3 {[%clk
01:33:34]} {[%emt 00:00:06]} O-O {[%clk 01:32:21]} {[%emt 00:00:15]} 9. Nc3
{[%clk 01:33:59]} {[%emt 00:00:05]} Nb8 {[%clk 01:32:14]} {[%emt 00:00:36]} 10.
h3 {[%clk 01:33:49]} {[%emt 00:00:39]} Nbd7 {[%clk 01:30:15]} {[%emt 00:02:29]}
11. Ne2 {[%clk 01:32:18]} {[%emt 00:02:02]} Nc5 {[%clk 01:29:24]} {[%emt
00:01:20]} 12. Ba2 {[%clk 01:32:37]} {[%emt 00:00:11]} Be6 {[%clk 01:29:36]}
{[%emt 00:00:18]} 13. Ng3 {[%clk 01:29:27]} {[%emt 00:03:41]} Bxa2 {[%clk
01:22:42]} {[%emt 00:07:23]} 14. Rxa2 {[%clk 01:29:53]} {[%emt 00:00:04]} g6
{[%clk 01:22:00]} {[%emt 00:01:12]} 15. Be3 {[%clk 01:24:25]} {[%emt 00:05:58]}
Ne6 {[%clk 01:21:53]} {[%emt 00:00:36]} 16. c3 {[%clk 01:18:00]} {[%emt
00:06:56]} Re8 {[%clk 01:19:29]} {[%emt 00:02:54]} 17. Qc2 {[%clk 01:10:02]}
{[%emt 00:08:29]} c5 {[%clk 01:16:51]} {[%emt 00:03:07]} 18. a4 {[%clk
01:02:14]} {[%emt 00:08:18]} b4 {[%clk 01:11:30]} {[%emt 00:05:51]} 19. cxb4
{[%clk 00:59:30]} {[%emt 00:03:15]} cxb4 {[%clk 01:11:02]} {[%emt 00:00:58]} 20.
a5 {[%clk 00:59:53]} {[%emt 00:00:07]} Qd7 {[%clk 01:07:20]} {[%emt 00:04:12]}
21. Qa4 {[%clk 00:55:46]} {[%emt 00:04:38]} Qb7 {[%clk 01:07:04]} {[%emt
00:00:46]} 22. Bb6 {[%clk 00:50:18]} {[%emt 00:05:58]} d5 {[%clk 01:00:45]}
{[%emt 00:06:49]} 23. Nxe5 {[%clk 00:46:08]} {[%emt 00:04:40]} dxe4 {[%clk
00:59:28]} {[%emt 00:01:47]} 24. dxe4 {[%clk 00:40:48]} {[%emt 00:05:51]} Nxe4
{[%clk 00:54:44]} {[%emt 00:05:13]} 25. Qc6 {[%clk 00:40:16]} {[%emt 00:01:02]}
Qxc6 {[%clk 00:54:52]} {[%emt 00:00:22]} 26. Nxc6 {[%clk 00:40:35]} {[%emt
00:00:10]} Nxg3 {[%clk 00:54:41]} {[%emt 00:00:41]} 27. Nxe7+ {[%clk 00:30:41]}
{[%emt 00:10:24]} Rxe7 {[%clk 00:54:58]} {[%emt 00:00:13]} 28. fxg3 {[%clk
00:31:10]} {[%emt 00:00:02]} Rc8 {[%clk 00:52:37]} {[%emt 00:02:51]} 29. Raa1
{[%clk 00:31:34]} {[%emt 00:00:06]} Rd7 {[%clk 00:51:32]} {[%emt 00:01:34]} 30.
Rac1 {[%clk 00:08:16]} {[%emt 00:23:49]} Rxc1 {[%clk 00:51:24]} {[%emt
00:00:37]} 31. Rxc1 {[%clk 00:08:43]} {[%emt 00:00:04]} Rd2 {[%clk 00:51:04]}
{[%emt 00:00:50]} 32. Rc8+ {[%clk 00:04:47]} {[%emt 00:04:27]} Kg7 {[%clk
00:51:22]} {[%emt 00:00:11]} 33. Ra8 {[%clk 00:02:34]} {[%emt 00:02:44]} Rxb2
{[%clk 00:51:26]} {[%emt 00:00:26]} 34. Rxa6 {[%clk 00:03:01]} {[%emt
00:00:04]} b3 {[%clk 00:51:04]} {[%emt 00:00:52]} 35. Kh2 {[%clk 00:02:44]}
{[%emt 00:00:47]} Ra2 {[%clk 00:50:17]} {[%emt 00:01:16]} 36. Be3 {[%clk
00:02:28]} {[%emt 00:00:46]} Re2 {[%clk 00:49:19]} {[%emt 00:01:28]} 37. Bg1
{[%clk 00:02:51]} {[%emt 00:00:07]} Ng5 {[%clk 00:44:57]} {[%emt 00:04:52]} 38.
Rb6 {[%clk 00:03:07]} {[%emt 00:00:15]} Nf3+ {[%clk 00:32:54]} {[%emt
00:12:33]} 39. Kh1 {[%clk 00:03:31]} {[%emt 00:00:06]} Nxg1 {[%clk 00:33:16]}
{[%emt 00:00:08]} 40. Kxg1 {[%clk 00:03:46]} {[%emt 00:00:15]} Ra2 {[%clk
00:33:17]} {[%emt 00:00:29]} 41. Rxb3 {[%clk 00:04:09]} {[%emt 00:00:08]} Rxa5
{[%clk 00:33:41]} {[%emt 00:00:05]} 1/2-1/2

[Event "Smuk Skak GM Tournament 2021"]
[Site "Skanderborg, Denmark"]
[Date "2021.08.20"]
[Round "7.2"]
[White "Antolak, Julia"]
[Black "Solodovnichenko, Yuri"]
[Result "1/2-1/2"]
[TimeControl "90 minutes + 30 minutes at move 40, 30 secs pr move from move 1"]
[WhiteTitle "WIM"]
[BlackTitle "GM"]
[WhiteFideId "1159569"]
[BlackFideId "14104369"]
[WhiteElo "2340"]
[BlackElo "2546"]

1. e4 {[%clk 01:30:56]} {[%emt 01:54:33]} c5 {[%clk 01:30:55]} {[%emt
00:00:04]} 2. Nf3 {[%clk 01:31:17]} {[%emt 00:00:09]} d6 {[%clk 01:31:17]}
{[%emt 00:00:09]} 3. d4 {[%clk 01:31:42]} {[%emt 00:00:05]} cxd4 {[%clk
01:31:41]} {[%emt 00:00:05]} 4. Nxd4 {[%clk 01:32:07]} {[%emt 00:00:05]} Nf6
{[%clk 01:32:06]} {[%emt 00:00:05]} 5. Nc3 {[%clk 01:32:32]} {[%emt 00:00:05]}
Nc6 {[%clk 01:32:33]} {[%emt 00:00:04]} 6. f3 {[%clk 01:32:19]} {[%emt
00:00:42]} e5 {[%clk 01:32:45]} {[%emt 00:00:18]} 7. Nb3 {[%clk 01:32:44]}
{[%emt 00:00:05]} Be7 {[%clk 01:33:07]} {[%emt 00:00:08]} 8. Be3 {[%clk
01:33:09]} {[%emt 00:00:06]} O-O {[%clk 01:33:10]} {[%emt 00:00:26]} 9. Qd2
{[%clk 01:32:59]} {[%emt 00:00:40]} Be6 {[%clk 01:33:33]} {[%emt 00:00:08]} 10.
O-O-O {[%clk 01:33:00]} {[%emt 00:00:28]} a5 {[%clk 01:33:59]} {[%emt
00:00:04]} 11. Bb5 {[%clk 01:32:57]} {[%emt 00:00:34]} Na7 {[%clk 01:34:23]}
{[%emt 00:00:06]} 12. Bxa7 {[%clk 01:33:20]} {[%emt 00:00:07]} Rxa7 {[%clk
01:34:48]} {[%emt 00:00:05]} 13. Kb1 {[%clk 01:33:20]} {[%emt 00:00:30]} Ne8
{[%clk 01:17:07]} {[%emt 00:18:11]} 14. a4 {[%clk 01:22:18]} {[%emt 00:11:32]}
Nc7 {[%clk 01:16:58]} {[%emt 00:00:39]} 15. Qf2 {[%clk 01:21:22]} {[%emt
00:01:26]} Nxb5 {[%clk 01:09:58]} {[%emt 00:07:30]} 16. Nxb5 {[%clk 01:21:40]}
{[%emt 00:00:12]} Ra6 {[%clk 01:10:00]} {[%emt 00:00:28]} 17. Nc1 {[%clk
01:12:53]} {[%emt 00:09:16]} f5 {[%clk 01:05:12]} {[%emt 00:05:18]} 18. Qe2
{[%clk 01:08:25]} {[%emt 00:04:58]} Qc8 {[%clk 01:02:13]} {[%emt 00:03:30]} 19.
exf5 {[%clk 01:05:20]} {[%emt 00:03:35]} Rxf5 {[%clk 00:58:40]} {[%emt
00:04:02]} 20. Na2 {[%clk 01:02:28]} {[%emt 00:03:22]} Bc4 {[%clk 00:53:58]}
{[%emt 00:05:11]} 21. Qd2 {[%clk 00:57:47]} {[%emt 00:05:12]} Qc5 {[%clk
00:24:20]} {[%emt 00:30:08]} 22. Nac3 {[%clk 00:50:55]} {[%emt 00:07:23]} Bg5
{[%clk 00:20:26]} {[%emt 00:04:23]} 23. Ne4 {[%clk 00:45:31]} {[%emt 00:05:55]}
Bxd2 {[%clk 00:20:46]} {[%emt 00:00:10]} 24. Nxc5 {[%clk 00:45:57]} {[%emt
00:00:04]} dxc5 {[%clk 00:21:12]} {[%emt 00:00:05]} 25. Rxd2 {[%clk 00:46:22]}
{[%emt 00:00:05]} Bxb5 {[%clk 00:20:54]} {[%emt 00:00:48]} 26. axb5 {[%clk
00:46:47]} {[%emt 00:00:06]} Rb6 {[%clk 00:21:21]} {[%emt 00:00:02]} 27. Rd5
{[%clk 00:43:33]} {[%emt 00:03:43]} Rxb5 {[%clk 00:20:55]} {[%emt 00:00:56]} 28.
Re1 {[%clk 00:42:25]} {[%emt 00:01:38]} b6 {[%clk 00:16:05]} {[%emt 00:05:21]}
29. Rexe5 {[%clk 00:38:45]} {[%emt 00:04:10]} Rxe5 {[%clk 00:16:24]} {[%emt
00:00:10]} 30. Rxe5 {[%clk 00:39:11]} {[%emt 00:00:04]} Kf7 {[%clk 00:16:46]}
{[%emt 00:00:08]} 31. Re4 {[%clk 00:34:34]} {[%emt 00:05:07]} Rb4 {[%clk
00:16:39]} {[%emt 00:00:37]} 32. c4 {[%clk 00:33:56]} {[%emt 00:01:08]} Kf6
{[%clk 00:15:36]} {[%emt 00:01:32]} 33. h4 {[%clk 00:28:29]} {[%emt 00:05:58]}
Ke5 {[%emt 00:00:20]} 1/2-1/2

[Event "Smuk Skak GM Tournament 2021"]
[Site "Skanderborg, Denmark"]
[Date "2021.08.20"]
[Round "7.3"]
[White "Olsen, Filip Boe"]
[Black "Ochsner, Bjørn Møller"]
[Result "1/2-1/2"]
[TimeControl "90 minutes + 30 minutes at move 40, 30 secs pr move from move 1"]
[WhiteTitle "IM"]
[BlackTitle "IM"]
[WhiteFideId "1440640"]
[BlackFideId "1416928"]
[WhiteElo "2397"]
[BlackElo "2506"]

1. c4 {[%clk 01:30:47]} {[%emt 00:00:10]} g6 {[%clk 01:28:12]} {[%emt
00:02:48]} 2. d4 {[%clk 01:29:47]} {[%emt 00:01:29]} Bg7 {[%clk 01:28:10]}
{[%emt 00:00:31]} 3. Nc3 {[%clk 01:30:07]} {[%emt 00:00:12]} Nf6 {[%clk
01:28:22]} {[%emt 00:00:18]} 4. g3 {[%clk 01:30:08]} {[%emt 00:00:29]} O-O
{[%clk 01:28:11]} {[%emt 00:00:41]} 5. Bg2 {[%clk 01:30:26]} {[%emt 00:00:11]}
d6 {[%clk 01:28:26]} {[%emt 00:00:16]} 6. Nf3 {[%clk 01:30:25]} {[%emt
00:00:31]} Nc6 {[%clk 01:28:28]} {[%emt 00:00:28]} 7. O-O {[%clk 01:30:24]}
{[%emt 00:00:31]} e5 {[%clk 01:27:19]} {[%emt 00:01:39]} 8. d5 {[%clk
01:28:06]} {[%emt 00:02:48]} Nb8 {[%clk 01:27:38]} {[%emt 00:00:10]} 9. e4
{[%clk 01:27:25]} {[%emt 00:01:11]} a5 {[%clk 01:26:46]} {[%emt 00:01:23]} 10.
Ne1 {[%clk 01:20:26]} {[%emt 00:07:30]} Na6 {[%clk 01:26:34]} {[%emt 00:00:42]}
11. Nd3 {[%clk 01:18:49]} {[%emt 00:02:07]} Nd7 {[%clk 01:25:11]} {[%emt
00:01:53]} 12. Be3 {[%clk 01:12:30]} {[%emt 00:06:49]} f5 {[%clk 01:11:48]}
{[%emt 00:13:53]} 13. f4 {[%clk 00:51:14]} {[%emt 00:21:46]} Nb4 {[%clk
00:59:17]} {[%emt 00:13:00]} 14. a3 {[%clk 00:40:36]} {[%emt 00:11:09]} Nxd3
{[%clk 00:58:42]} {[%emt 00:01:05]} 15. Qxd3 {[%clk 00:41:03]} {[%emt
00:00:02]} Nc5 {[%clk 00:55:46]} {[%emt 00:03:25]} 16. Bxc5 {[%clk 00:31:53]}
{[%emt 00:09:41]} dxc5 {[%clk 00:56:07]} {[%emt 00:00:11]} 17. Rae1 {[%clk
00:25:16]} {[%emt 00:07:07]} fxe4 {[%clk 00:47:52]} {[%emt 00:08:44]} 18. Nxe4
{[%clk 00:23:10]} {[%emt 00:02:33]} exf4 {[%clk 00:31:55]} {[%emt 00:16:30]} 19.
Nxc5 {[%clk 00:21:46]} {[%emt 00:01:53]} fxg3 {[%clk 00:31:08]} {[%emt
00:01:19]} 20. hxg3 {[%clk 00:21:16]} {[%emt 00:01:00]} Rxf1+ {[%clk 00:28:35]}
{[%emt 00:03:03]} 21. Rxf1 {[%clk 00:21:08]} {[%emt 00:00:39]} Bf5 {[%clk
00:27:02]} {[%emt 00:02:03]} 22. Be4 {[%clk 00:20:02]} {[%emt 00:01:36]} Qd6
{[%clk 00:25:56]} {[%emt 00:01:35]} 23. b4 {[%clk 00:18:23]} {[%emt 00:02:09]}
axb4 {[%clk 00:18:46]} {[%emt 00:07:41]} 24. axb4 {[%clk 00:18:51]} {[%emt
00:00:02]} b6 {[%clk 00:18:20]} {[%emt 00:00:57]} 25. Bxf5 {[%clk 00:18:39]}
{[%emt 00:00:42]} bxc5 {[%clk 00:18:38]} {[%emt 00:00:12]} 26. Be6+ {[%clk
00:18:54]} {[%emt 00:00:14]} Kh8 {[%clk 00:19:07]} {[%emt 00:00:02]} 27. b5
{[%clk 00:19:02]} {[%emt 00:00:22]} Qe5 {[%clk 00:18:13]} {[%emt 00:01:24]} 28.
Kg2 {[%clk 00:16:31]} {[%emt 00:03:01]} Ra2+ {[%clk 00:15:03]} {[%emt
00:03:41]} 29. Rf2 {[%clk 00:16:25]} {[%emt 00:00:36]} Rxf2+ {[%clk 00:14:59]}
{[%emt 00:00:34]} 30. Kxf2 {[%clk 00:16:53]} {[%emt 00:00:02]} Qb2+ {[%clk
00:15:15]} {[%emt 00:00:15]} 1/2-1/2